fUSD/lending_fUSD_20240913
["ID","MTS","AMOUNT","RATE_DAILY","PERIOD"]
[337926686,1726207854981,-354.88799783,0.00013777,2]
[337926687,1726207854991,-873.78,0.00013777,2]
[337926688,1726207855000,-596.94,0.00013777,2]
[337926689,1726207855009,-874.05,0.00013777,2]
[337926690,1726207855018,-500.0,0.00013777,2]
[337926691,1726207855028,-672.26,0.00013777,2]
[337926692,1726207855037,-4238.17,0.00013777,2]
[337926693,1726207855046,-500.0,0.00013777,2]
[337926694,1726207855055,-961.06,0.00013777,2]
[337926695,1726207855064,-500.0,0.00013777,2]
[337926696,1726207855073,-3098.55,0.00013777,2]
[337926697,1726207855082,-500.0,0.00013777,2]
[337926698,1726207855092,-500.0,0.00013777,2]
[337926699,1726207855101,-2349.07,0.00013777,2]
[337926700,1726207855110,-500.0,0.00013777,2]
[337926702,1726207855120,-852.44,0.00013777,2]
[337926704,1726207855129,-4294.23,0.00013777,2]
[337926706,1726207855138,-1221.18,0.00013777,2]
[337926708,1726207855148,-3008.39,0.00013777,2]
[337926710,1726207855158,-970.89,0.00013777,2]
[337926712,1726207855171,-639.9,0.00013777,2]
[337926714,1726207855180,-52989.22,0.00013777,2]
[337926716,1726207855190,-2603.55,0.00013777,2]
[337926719,1726207855200,-531.44,0.00013777,2]
[337926721,1726207855211,-500.0,0.00013777,2]
[337926722,1726207855220,-500.0,0.00013777,2]
[337926724,1726207855229,-500.0,0.00013777,2]
[337926726,1726207855239,-1260.77,0.00013777,2]
[337926728,1726207855248,-2296.17,0.00013777,2]
[337926730,1726207855257,-3637.82,0.00013777,2]
[337926732,1726207855266,-589.37,0.00013777,2]
[337926734,1726207855275,-500.0,0.00013777,2]
[337926736,1726207855285,-500.0,0.00013777,2]
[337926738,1726207855294,-2200.06,0.00013777,2]
[337926740,1726207855303,-1993.3,0.00013777,2]
[337926741,1726207855312,-916.57,0.00013777,2]
[337926743,1726207855321,-4126.05,0.00013777,2]
[337926745,1726207855334,-2285.15,0.00013777,2]
[337926747,1726207855344,-750.37,0.00013777,2]
[337926749,1726207855354,-2309.1,0.00013777,2]
[337926751,1726207855364,-1262.6,0.00013777,2]
[337926753,1726207855376,-1608.17,0.00013777,2]
[337926755,1726207855385,-1355.42,0.00013777,2]
[337926757,1726207855396,-922.17,0.00013777,2]
[337926759,1726207855408,-4241.39,0.00013777,2]
[337926761,1726207855419,-1119.11,0.00013777,2]
[337926763,1726207855430,-3010.58,0.00013777,2]
[337926765,1726207855441,-2961.85,0.00013777,2]
[337926767,1726207855450,-3606.13,0.00013777,2]
[337926769,1726207855460,-5372.06,0.00013777,2]
[337926771,1726207855470,-571.19,0.00013777,2]
[337926773,1726207855479,-500.0,0.00013777,2]
[337926775,1726207855488,-981.11,0.00013777,2]
[337926777,1726207855498,-914.29,0.00013777,2]
[337926779,1726207855508,-500.0,0.00013777,2]
[337926781,1726207855517,-785.15,0.00013777,2]
[337926783,1726207855529,-1266.26,0.00013777,2]
[337926785,1726207855538,-500.0,0.00013777,2]
[337926787,1726207855548,-500.0,0.00013777,2]
[337926789,1726207855559,-500.0,0.00013777,2]
[337926791,1726207855568,-34284.25,0.00013777,2]
[337926794,1726207855580,-6552.28,0.00013777,2]
[337926796,1726207855590,-3396.17,0.00013777,2]
[337926798,1726207855600,-5048.0,0.00013777,2]
[337926800,1726207855610,-2532.63,0.00013777,2]
[337926802,1726207855621,-966.85,0.00013777,2]
[337926804,1726207855631,-3180.3,0.00013777,2]
[337926806,1726207855642,-2150.36,0.00013777,2]
[337926808,1726207855652,-2705.79,0.00013777,2]
[337926810,1726207855662,-906.34,0.00013777,2]
[337926812,1726207855672,-2247.98,0.00013777,2]
[337926814,1726207855682,-500.0,0.00013777,2]
[337926816,1726207855692,-550.95,0.00013777,2]
[337926819,1726207855702,-11539.97,0.00013777,2]
[337926821,1726207855715,-4848.46,0.00013777,2]
[337926823,1726207855724,-3007.15,0.00013777,2]
[337926825,1726207855734,-2177.1,0.00013777,2]
[337926827,1726207855743,-2051.18,0.00013777,2]
[337926828,1726207855752,-2518.74,0.00013777,2]
[337926830,1726207855761,-500.0,0.00013777,2]
[337926833,1726207855771,-544.78,0.00013777,2]
[337926835,1726207855781,-2426.19,0.00013777,2]
[337926837,1726207855790,-2498.51,0.00013777,2]
[337926839,1726207855799,-3383.13,0.00013777,2]
[337926840,1726207855808,-2318.53,0.00013777,2]
[337926842,1726207855817,-3188.29,0.00013777,2]
[337926844,1726207855827,-6251.33,0.00013777,2]
[337926846,1726207855837,-1005.33,0.00013777,2]
[337926848,1726207855846,-3388.78,0.00013777,2]
[337926850,1726207855856,-3007.82,0.00013777,2]
[337926852,1726207855865,-2723.58,0.00013777,2]
[337926854,1726207855875,-1216.59,0.00013777,2]
[337926856,1726207855884,-500.0,0.00013777,2]
[337926857,1726207855893,-500.0,0.00013778,2]
[337926859,1726207855903,-1597.26,0.00013778,2]
[337926861,1726207855912,-1123.5,0.00013778,2]
[337926863,1726207855921,-4459.04,0.00013778,2]
[337926865,1726207855931,-1655.33,0.00013778,2]
[337926867,1726207855940,-524.57918002,0.00013778,2]
[337926869,1726207855949,-2236.93,0.00013778,2]
[337926871,1726207855958,-2178.02,0.00013778,2]
[337926873,1726207855967,-1667.22,0.00013778,2]
[337926874,1726207855977,-2180.98,0.00013778,2]
[337926876,1726207855986,-2168.58,0.00013778,2]
[337926878,1726207855997,-500.0,0.00013778,2]
[337926880,1726207856007,-500.0,0.00013778,2]
[337926882,1726207856015,-1610.77,0.00013778,2]
[337926884,1726207856024,-1578.52,0.00013778,2]
[337926886,1726207856040,-991.16,0.00013778,2]
[337926888,1726207856050,-1755.89,0.00013778,2]
[337926890,1726207856059,-500.0,0.00013778,2]
[337926892,1726207856068,-4137.78,0.00013778,2]
[337926894,1726207856077,-710.74,0.00013778,2]
[337926896,1726207856086,-3611.82,0.00013778,2]
[337926898,1726207856095,-1582.96,0.00013778,2]
[337926900,1726207856104,-3006.27,0.00013778,2]
[337926902,1726207856113,-990.25,0.00013778,2]
[337926903,1726207856122,-1355.63,0.00013778,2]
[337926905,1726207856131,-2394.09,0.00013778,2]
[337926907,1726207856141,-2186.47,0.00013778,2]
[337926909,1726207856150,-175.32,0.00013778,2]
[337926911,1726207856160,-1174.7,0.00013778,2]
[337926913,1726207856169,-1755.23,0.00013778,2]
[337926915,1726207856178,-1827.91,0.00013778,2]
[337926917,1726207856187,-903.53,0.00013778,2]
[337926919,1726207856195,-500.0,0.00013778,2]
[337926921,1726207856205,-901.57,0.00013778,2]
[337926923,1726207856214,-849.96,0.00013778,2]
[337926925,1726207856223,-2008.45,0.00013778,2]
[337926927,1726207856232,-1026.83,0.00013778,2]
[337926929,1726207856242,-3173.88,0.00013778,2]
[337926931,1726207856251,-1917.63,0.00013778,2]
[337926933,1726207856261,-741.5,0.00013778,2]
[337926934,1726207856270,-500.0,0.00013778,2]
[337926936,1726207856283,-2883.01,0.00013778,2]
[337926938,1726207856292,-2235.92,0.00013778,2]
[337926940,1726207856302,-500.0,0.00013778,2]
[337926942,1726207856311,-866.48,0.00013778,2]
[337926944,1726207856320,-3749.94,0.00013778,2]
[337926946,1726207856331,-764.3,0.00013778,2]
[337926948,1726207856340,-2582.0,0.00013778,2]
[337926950,1726207856350,-1741.2,0.00013778,2]
[337926952,1726207856361,-1998.95,0.00013778,2]
[337926954,1726207856372,-500.0,0.00013778,2]
[337926956,1726207856381,-2252.07,0.00013778,2]
[337926958,1726207856392,-500.0,0.00013778,2]
[337926960,1726207856405,-2274.3,0.00013778,2]
[337926962,1726207856415,-4179.74,0.00013778,2]
[337926964,1726207856424,-500.0,0.00013778,2]
[337926966,1726207856434,-1853.09,0.00013778,2]
[337926968,1726207856443,-500.0,0.00013778,2]
[337926970,1726207856452,-776.79,0.00013778,2]
[337926972,1726207856462,-1622.46,0.00013778,2]
[337926974,1726207856471,-2217.17,0.00013778,2]
[337926976,1726207856481,-1359.11,0.00013778,2]
[337926978,1726207856491,-609.93054325,0.00013778,2]
[337926980,1726207856500,-1261.5,0.00013778,2]
[337926982,1726207856509,-1258.27,0.00013778,2]
[337926984,1726207856519,-709.66,0.00013778,2]
[337926986,1726207856527,-2888.25,0.00013778,2]
[337926988,1726207856537,-574.29,0.00013778,2]
[337926990,1726207856547,-1568.79,0.00013778,2]
[337926992,1726207856556,-2177.36,0.00013778,2]
[337926994,1726207856565,-1943.66,0.00013778,2]
[337926996,1726207856574,-500.0,0.00013779,2]
[337926998,1726207856583,-500.20784437,0.00013779,2]
[337927000,1726207856592,-500.0,0.00013779,2]
[337927002,1726207856601,-500.0,0.00013779,2]
[337927004,1726207856610,-340.04618347,0.00013779,2]
[337927005,1726207856619,-500.0,0.00013779,2]
[337927007,1726207856628,-500.0,0.00013779,2]
[337927009,1726207856638,-500.0,0.00013779,2]
[337927011,1726207856648,-2698.15,0.00013779,2]
[337927013,1726207856657,-500.0,0.00013779,2]
[337927015,1726207856666,-1619.86,0.00013779,2]
[337927017,1726207856675,-1586.6,0.00013779,2]
[337927019,1726207856684,-500.0,0.00013779,2]
[337927021,1726207856693,-814.02,0.00013779,2]
[337927023,1726207856703,-646.24,0.00013779,2]
[337927024,1726207856712,-1719.9,0.00013779,2]
[337927026,1726207856721,-940.8,0.00013779,2]
[337927028,1726207856730,-500.0,0.00013779,2]
[337927030,1726207856740,-500.0,0.00013779,2]
[337927032,1726207856750,-2780.02,0.00013779,2]
[337927034,1726207856759,-991.55,0.00013779,2]
[337927036,1726207856769,-3182.62,0.00013779,2]
[337927038,1726207856778,-1820.52,0.00013779,2]
[337927040,1726207856787,-4033.44,0.00013779,2]
[337927042,1726207856797,-151.0,0.00013779,2]
[337927044,1726207856806,-541.76,0.00013779,2]
[337927046,1726207856818,-151.0,0.00013779,2]
[337927048,1726207856827,-2662.49,0.00013779,2]
[337927051,1726207856836,-697.73,0.00013779,2]
[337927053,1726207856846,-2366.24,0.00013779,2]
[337927055,1726207856856,-500.0,0.00013779,2]
[337927057,1726207856866,-500.0,0.00013779,2]
[337927058,1726207856875,-2066.88,0.00013779,2]
[337927060,1726207856885,-3032.62,0.00013779,2]
[337927062,1726207856894,-500.0,0.00013779,2]
[337927064,1726207856903,-3440.83,0.00013779,2]
[337927066,1726207856913,-587.37,0.00013779,2]
[337927068,1726207856923,-500.0,0.00013779,2]
[337927070,1726207856932,-1149.25,0.00013779,2]
[337927071,1726207856941,-500.0,0.00013779,2]
[337927073,1726207856951,-2007.79,0.00013779,2]
[337927075,1726207856960,-500.0,0.00013779,2]
[337927077,1726207856970,-500.0,0.00013779,2]
[337927079,1726207856980,-535.29,0.00013779,2]
[337927081,1726207856990,-500.0,0.00013779,2]
[337927083,1726207856999,-3900.82,0.00013779,2]
[337927085,1726207857009,-564.36,0.00013779,2]
[337927087,1726207857018,-887.43,0.00013779,2]
[337927089,1726207857030,-823.78,0.00013779,2]
[337927091,1726207857039,-500.0,0.00013779,2]
[337927093,1726207857049,-412.1698262,0.00013788,2]
[337927095,1726207857058,-2261.1944731,0.00013788,2]
[337927097,1726207857067,-7311.8055979,0.00013788,2]
[337927099,1726207857077,-42974.9441943,0.00013788,2]
[337927101,1726207857086,-2587.963857,0.00013788,2]
[337927104,1726207857096,-7077.96976506,0.0001379,2]
[337927117,1726207857220,-26366.02876064,0.0001379,2]
[337927119,1726207857230,-6842.19376518,0.00013797,2]
[337927121,1726207857239,-151.0,0.000138,2]
[337927123,1726207857248,-151.0,0.000138,2]
[337927124,1726207857258,-1200.0,0.000138,5]
[337927126,1726207857267,-209911.58047,0.000138,2]
[337927128,1726207857277,-306.98,0.0001387,2]
[337927130,1726207857288,-164.41890103,0.0001389,2]
[337927132,1726207857297,-200.0,0.000139,5]
[337927134,1726207857309,-62414.0086925,0.000139,2]
[337927136,1726207857321,-12704.34235474,0.00014,2]
[337927138,1726207857333,-5000.0,0.00014,6]
[337927140,1726207857343,-349.3437124,0.00014,2]
[337927142,1726207857353,-301.45373313,0.00014,2]
[337927144,1726207857363,-150.0,0.00014,2]
[337927146,1726207857373,-160.74645544,0.00014016,2]
[337927148,1726207857384,-2176.4592052,0.00014041,2]
[337927150,1726207857394,-405.6764687,0.00014042,2]
[337927153,1726207857407,-2225.5714286,0.00014042,2]
[337927154,1726207857418,-6149.1765261,0.00014042,2]
[337927156,1726207857427,-36141.6225461,0.00014042,2]
[337927158,1726207857437,-500.0,0.00014049,2]
[337927160,1726207857447,-740.86,0.00014049,2]
[337927162,1726207857458,-500.0,0.00014049,2]
[337927164,1726207857467,-577.5,0.0001405,2]
[337927166,1726207857476,-47356.9,0.0001405,2]
[337927168,1726207857487,-6669.17,0.0001405,2]
[337927170,1726207857496,-2780.8,0.0001405,2]
[337927172,1726207857508,-500.0,0.0001405,2]
[337927173,1726207857519,-1371.45,0.0001405,2]
[337927175,1726207857530,-1644.43,0.0001405,2]
[337927177,1726207857539,-601.64,0.0001405,2]
[337927179,1726207857548,-805.65,0.0001405,2]
[337927181,1726207857559,-2471.22,0.0001405,2]
[337927183,1726207857568,-3998.73,0.0001405,2]
[337927185,1726207857577,-1893.7,0.0001405,2]
[337927187,1726207857587,-2685.85,0.0001405,2]
[337927189,1726207857597,-2355.68,0.0001405,2]
[337927191,1726207857607,-1290.2,0.0001405,2]
[337927193,1726207857616,-3090.69,0.0001405,2]
[337927195,1726207857626,-10575.95,0.0001405,2]
[337927197,1726207857635,-2228.93,0.0001405,2]
[337927198,1726207857645,-1924.11,0.0001405,2]
[337927200,1726207857655,-3999.61,0.0001405,2]
[337927202,1726207857664,-2756.63,0.0001405,2]
[337927204,1726207857674,-2039.83,0.0001405,2]
[337927207,1726207857684,-4382.07,0.0001405,2]
[337927208,1726207857694,-2563.61,0.0001405,2]
[337927210,1726207857703,-697.17,0.0001405,2]
[337927212,1726207857713,-3668.01,0.0001405,2]
[337927214,1726207857723,-15000.85,0.0001405,2]
[337927216,1726207857732,-1017.52,0.0001405,2]
[337927218,1726207857742,-2679.4,0.0001405,2]
[337927220,1726207857752,-2417.39,0.0001405,2]
[337927222,1726207857762,-39510.23,0.0001405,2]
[337927224,1726207857773,-6415.55,0.0001405,2]
[337927226,1726207857783,-2131.91,0.0001405,2]
[337927228,1726207857792,-2033.36,0.0001405,2]
[337927230,1726207857802,-2847.91,0.0001405,2]
[337927232,1726207857812,-2357.11,0.0001405,2]
[337927234,1726207857821,-1449.8,0.0001405,2]
[337927236,1726207857831,-8256.5,0.0001405,2]
[337927238,1726207857841,-500.0,0.0001405,2]
[337927240,1726207857850,-9236.73,0.0001405,2]
[337927242,1726207857860,-1373.91,0.0001405,2]
[337927244,1726207857869,-3499.59,0.0001405,2]
[337927246,1726207857878,-1033.06,0.0001405,2]
[337927248,1726207857888,-2381.27,0.0001405,2]
[337927250,1726207857897,-3127.01,0.0001405,2]
[337927251,1726207857907,-3835.54,0.0001405,2]
[337927253,1726207857916,-7411.59,0.0001405,2]
[337927255,1726207857925,-6205.84,0.0001405,2]
[337927257,1726207857935,-1195.4,0.0001405,2]
[337927259,1726207857946,-693.82,0.0001405,2]
[337927261,1726207857956,-6244.27,0.0001405,2]
[337927263,1726207857965,-8864.5,0.0001405,2]
[337927265,1726207857975,-667.48,0.0001405,2]
[337927267,1726207857984,-1060.76,0.0001405,2]
[337927269,1726207857993,-897.04,0.0001405,2]
[337927270,1726207858002,-1814.79,0.00014051,2]
[337927273,1726207858012,-500.0,0.00014051,2]
[337927274,1726207858021,-500.0,0.00014051,2]
[337927276,1726207858031,-500.0,0.00014051,2]
[337927278,1726207858040,-954.6,0.00014051,2]
[337927280,1726207858049,-2167.77,0.00014051,2]
[337927282,1726207858058,-500.0,0.00014051,2]
[337927284,1726207858069,-1160.48,0.00014051,2]
[337927286,1726207858078,-500.0,0.00014051,2]
[337927288,1726207858087,-1233.86,0.00014051,2]
[337927290,1726207858097,-500.0,0.00014051,2]
[337927292,1726207858106,-500.0,0.00014051,2]
[337927294,1726207858116,-2268.65,0.00014051,2]
[337927296,1726207858126,-500.0,0.00014051,2]
[337927298,1726207858135,-721.99,0.00014051,2]
[337927300,1726207858144,-638.65,0.00014051,2]
[337927302,1726207858154,-580.24,0.00014051,2]
[337927304,1726207858163,-1859.7,0.00014051,2]
[337927306,1726207858172,-500.0,0.00014051,2]
[337927308,1726207858182,-2169.41,0.00014051,2]
[337927310,1726207858191,-500.0,0.00014051,2]
[337927312,1726207858200,-500.0,0.00014051,2]
[337927314,1726207858210,-500.0,0.00014051,2]
[337927316,1726207858219,-500.0,0.00014051,2]
[337927318,1726207858228,-500.0,0.00014051,2]
[337927320,1726207858238,-500.0,0.00014051,2]
[337927322,1726207858248,-2454.4,0.00014051,2]
[337927324,1726207858258,-1762.89,0.00014051,2]
[337927326,1726207858267,-500.0,0.00014051,2]
[337927328,1726207858276,-2427.84,0.00014051,2]
[337927330,1726207858287,-527.98,0.00014051,2]
[337927332,1726207858296,-500.0,0.00014051,2]
[337927334,1726207858307,-500.0,0.00014051,2]
[337927336,1726207858317,-2449.58,0.00014051,2]
[337927338,1726207858333,-616.84,0.00014051,2]
[337927340,1726207858343,-190.74210156,0.00014051,2]
[337927342,1726207858353,-500.0,0.00014051,2]
[337927344,1726207858364,-1200.04,0.00014051,2]
[337927346,1726207858374,-500.0,0.00014051,2]
[337927348,1726207858383,-500.0,0.00014051,2]
[337927350,1726207858392,-500.0,0.00014051,2]
[337927351,1726207858403,-500.0,0.00014051,2]
[337927353,1726207858413,-1843.23,0.00014051,2]
[337927354,1726207858423,-1049.64,0.00014051,2]
[337927355,1726207858433,-500.0,0.00014051,2]
[337927356,1726207858443,-716.26,0.00014051,2]
[337927357,1726207858452,-1314.98,0.00014051,2]
[337927358,1726207858462,-706.12,0.00014051,2]
[337927359,1726207858473,-2731.45,0.00014051,2]
[337927360,1726207858483,-1334.63,0.00014051,2]
[337927361,1726207858492,-500.0,0.00014051,2]
[337927362,1726207858502,-3186.47,0.00014051,2]
[337927363,1726207858511,-500.0,0.00014051,2]
[337927364,1726207858521,-1915.16,0.00014051,2]
[337927365,1726207858532,-968.58,0.00014051,2]
[337927366,1726207858541,-500.0,0.00014051,2]
[337927368,1726207858550,-500.0,0.00014051,2]
[337927370,1726207858559,-1992.66,0.00014051,2]
[337927372,1726207858568,-565.35,0.00014051,2]
[337927373,1726207858578,-500.0,0.00014051,2]
[337927375,1726207858589,-500.0,0.00014051,2]
[337927377,1726207858599,-1809.16,0.00014051,2]
[337927379,1726207858610,-289.95588185,0.00014051,2]
[337927381,1726207858620,-1266.41,0.00014051,2]
[337927383,1726207858629,-2970.17,0.00014051,2]
[337927385,1726207858640,-2176.07,0.00014051,2]
[337927387,1726207858649,-500.0,0.00014051,2]
[337927389,1726207858660,-500.0,0.00014051,2]
[337927391,1726207858669,-1275.59,0.00014051,2]
[337927393,1726207858679,-500.0,0.00014051,2]
[337927395,1726207858689,-500.0,0.00014051,2]
[337927397,1726207858699,-500.0,0.00014051,2]
[337927399,1726207858708,-810.78,0.00014051,2]
[337927401,1726207858718,-1552.2,0.00014051,2]
[337927403,1726207858727,-595.76,0.00014051,2]
[337927405,1726207858737,-1356.18,0.00014051,2]
[337927407,1726207858746,-2622.06,0.00014051,2]
[337927409,1726207858755,-2293.56,0.00014051,2]
[337927411,1726207858765,-500.61,0.00014051,2]
[337927413,1726207858775,-500.0,0.00014051,2]
[337927414,1726207858786,-1173.88,0.00014051,2]
[337927416,1726207858795,-1137.68,0.00014051,2]
[337927419,1726207858805,-2568.68,0.00014051,2]
[337927420,1726207858814,-500.0,0.00014051,2]
[337927422,1726207858824,-1616.09,0.00014051,2]
[337927424,1726207858833,-733.75,0.00014051,2]
[337927426,1726207858843,-1316.26,0.00014051,2]
[337927428,1726207858853,-717.99,0.00014051,2]
[337927430,1726207858862,-500.0,0.00014051,2]
[337927433,1726207858873,-1443.26,0.00014051,2]
[337927435,1726207858883,-500.0,0.00014051,2]
[337927437,1726207858892,-1309.7,0.00014051,2]
[337927439,1726207858902,-3118.53,0.00014051,2]
[337927441,1726207858912,-789.58,0.00014051,2]
[337927443,1726207858921,-1708.55,0.00014051,2]
[337927445,1726207858932,-2257.53,0.00014051,2]
[337927447,1726207858941,-500.0,0.00014051,2]
[337927449,1726207858951,-500.0,0.00014051,2]
[337927451,1726207858960,-1161.7,0.00014051,2]
[337927453,1726207858969,-986.29,0.00014051,2]
[337927455,1726207858979,-500.0,0.00014051,2]
[337927457,1726207858989,-500.0,0.00014051,2]
[337927458,1726207858998,-1048.72,0.00014051,2]
[337927460,1726207859007,-500.0,0.00014051,2]
[337927462,1726207859017,-1895.67,0.00014051,2]
[337927464,1726207859026,-6468.98,0.00014051,2]
[337927467,1726207859036,-500.0,0.00014051,2]
[337927469,1726207859046,-500.0,0.00014051,2]
[337927471,1726207859055,-500.0,0.00014051,2]
[337927473,1726207859066,-500.0,0.00014051,2]
[337927475,1726207859076,-500.0,0.00014051,2]
[337927477,1726207859086,-1525.68,0.00014051,2]
[337927479,1726207859095,-500.0,0.00014051,2]
[337927481,1726207859106,-2115.23,0.00014051,2]
[337927483,1726207859115,-1856.39,0.00014051,2]
[337927511,1726207859346,-1368.05,0.00014051,2]
[337927514,1726207859398,-500.0,0.00014051,2]
[337927516,1726207859408,-873.78,0.00014051,2]
[337927518,1726207859418,-596.94,0.00014051,2]
[337927520,1726207859427,-874.05,0.00014051,2]
[337927522,1726207859436,-500.0,0.00014051,2]
[337927524,1726207859445,-672.26,0.00014051,2]
[337927526,1726207859454,-4238.17,0.00014051,2]
[337927528,1726207859463,-500.0,0.00014051,2]
[337927530,1726207859472,-961.06,0.00014051,2]
[337927532,1726207859482,-500.0,0.00014051,2]
[337927534,1726207859491,-3098.55,0.00014051,2]
[337927535,1726207859500,-500.0,0.00014051,2]
[337927537,1726207859509,-500.0,0.00014051,2]
[337927539,1726207859519,-2349.07,0.00014051,2]
[337927541,1726207859527,-500.0,0.00014051,2]
[337927543,1726207859538,-852.44,0.00014051,2]
[337927545,1726207859548,-4294.23,0.00014051,2]
[337927547,1726207859557,-3008.39,0.00014051,2]
[337927549,1726207859567,-1221.18,0.00014051,2]
[337927550,1726207859576,-970.89,0.00014051,2]
[337927552,1726207859586,-639.9,0.00014051,2]
[337927554,1726207859595,-52989.22,0.00014051,2]
[337927556,1726207859605,-2603.55,0.00014051,2]
[337927558,1726207859614,-531.44,0.00014051,2]
[337927559,1726207859624,-500.0,0.00014051,2]
[337927561,1726207859633,-500.0,0.00014051,2]
[337927563,1726207859642,-500.0,0.00014051,2]
[337927565,1726207859651,-1260.77,0.00014051,2]
[337927567,1726207859660,-2296.17,0.00014051,2]
[337927569,1726207859669,-3637.82,0.00014051,2]
[337927570,1726207859678,-500.0,0.00014051,2]
[337927572,1726207859688,-589.37,0.00014051,2]
[337927574,1726207859697,-500.0,0.00014051,2]
[337927576,1726207859707,-2200.06,0.00014051,2]
[337927578,1726207859716,-1993.3,0.00014051,2]
[337927580,1726207859726,-916.57,0.00014051,2]
[337927582,1726207859736,-4126.05,0.00014051,2]
[337927584,1726207859746,-2285.15,0.00014051,2]
[337927586,1726207859756,-750.37,0.00014051,2]
[337927588,1726207859765,-2309.1,0.00014051,2]
[337927590,1726207859774,-1262.6,0.00014051,2]
[337927592,1726207859784,-1608.17,0.00014051,2]
[337927594,1726207859794,-1355.42,0.00014051,2]
[337927596,1726207859803,-922.17,0.00014051,2]
[337927598,1726207859813,-4241.39,0.00014051,2]
[337927600,1726207859822,-1119.11,0.00014051,2]
[337927602,1726207859833,-3010.58,0.00014051,2]
[337927604,1726207859842,-2961.85,0.00014051,2]
[337927606,1726207859852,-3606.13,0.00014051,2]
[337927608,1726207859861,-5372.06,0.00014051,2]
[337927610,1726207859870,-571.19,0.00014051,2]
[337927612,1726207859880,-500.0,0.00014051,2]
[337927613,1726207859890,-981.11,0.00014051,2]
[337927615,1726207859899,-914.29,0.00014051,2]
[337927617,1726207859909,-500.0,0.00014051,2]
[337927619,1726207859918,-785.15,0.00014051,2]
[337927621,1726207859927,-1266.26,0.00014051,2]
[337927623,1726207859936,-500.0,0.00014051,2]
[337927625,1726207859946,-500.0,0.00014051,2]
[337927626,1726207859955,-500.0,0.00014051,2]
[337927628,1726207859965,-34284.25,0.00014051,2]
[337927630,1726207859974,-6552.28,0.00014051,2]
[337927632,1726207859983,-3396.17,0.00014051,2]
[337927634,1726207859993,-5048.0,0.00014051,2]
[337927636,1726207860002,-2532.63,0.00014051,2]
[337927638,1726207860012,-966.85,0.00014051,2]
[337927640,1726207860021,-3180.3,0.00014051,2]
[337927642,1726207860031,-2150.36,0.00014051,2]
[337927643,1726207860040,-2705.79,0.00014051,2]
[337927645,1726207860050,-906.34,0.00014051,2]
[337927647,1726207860060,-2247.98,0.00014051,2]
[337927649,1726207860069,-500.0,0.00014051,2]
[337927651,1726207860078,-550.95,0.00014051,2]
[337927653,1726207860087,-11539.97,0.00014051,2]
[337927655,1726207860098,-4848.46,0.00014051,2]
[337927657,1726207860107,-3007.15,0.00014051,2]
[337927659,1726207860116,-2177.1,0.00014051,2]
[337927661,1726207860126,-2051.18,0.00014051,2]
[337927663,1726207860135,-2518.74,0.00014051,2]
[337927665,1726207860145,-500.0,0.00014051,2]
[337927667,1726207860155,-544.78,0.00014051,2]
[337927669,1726207860164,-2426.19,0.00014051,2]
[337927671,1726207860173,-2498.51,0.00014051,2]
[337927672,1726207860182,-3383.13,0.00014051,2]
[337927674,1726207860192,-2318.53,0.00014051,2]